bitfinex/quotes_ETHUSD_20251009
["timestamp","ask_amount","ask_price","bid_price","bid_amount"]
[1759973883578,3.027,4473.1,4473.0,2.0294876]
[1759973883778,5.29053087,4473.1,4473.0,2.0294876]
[1759973884014,20.89058605,4473.1,4473.0,2.0294876]
[1759973884222,23.21658605,4473.1,4473.0,2.0294876]
[1759973885214,5.26258605,4473.1,4473.0,2.0294876]
[1759973885384,23.21658605,4473.1,4473.0,2.0294876]
[1759973886696,5.26258605,4473.1,4473.0,2.0294876]
[1759973886898,23.21558605,4473.1,4473.0,2.0294876]
[1759973887298,5.26258605,4473.1,4473.0,2.0294876]
[1759973887499,23.21558605,4473.1,4473.0,2.0294876]
[1759973887908,5.26258605,4473.1,4473.0,2.0294876]
[1759973888090,24.23858549,4473.1,4473.0,2.0294876]
[1759973888604,33.54458549,4473.1,4473.0,2.0294876]
[1759973889421,36.2745052,4473.1,4473.0,2.0294876]
[1759973889923,36.94829645,4473.1,4473.0,2.0294876]
[1759973892341,2.869336,4472.8,4472.7,0.001]
[1759973892634,9.85477009,4472.8,4472.7,0.001]
[1759973892834,9.82682339,4472.8,4472.7,0.001]
[1759973893028,10.30022339,4472.8,4472.7,0.001]
[1759973893337,13.70393435,4472.8,4472.7,0.001]
[1759973895534,15.62393435,4472.8,4472.7,0.001]
[1759973895727,16.29898096,4472.8,4472.7,0.001]
[1759973897532,0.6336,4472.3,4471.9,1e-08]
[1759973897731,10.51944691,4472.0,4471.9,1e-08]
[1759973898041,17.86444635,4472.0,4471.9,1e-08]
[1759973898243,18.33784635,4472.0,4471.9,1e-08]
[1759973898617,19.01206133,4472.0,4471.9,1e-08]
[1759973899124,19.4628701,4472.0,4471.9,1e-08]
[1759973899323,4.79013605,4471.2,4471.1,1e-08]
[1759973899523,24.4583344,4471.2,4471.1,1e-08]
[1759973899723,24.9317344,4471.2,4471.1,1e-08]
[1759973899925,2.87063637,4470.2,4469.1,0.01]
[1759973900225,0.4734,4470.6,4469.8,2.2372272]
[1759973900426,0.6336,4470.3,4469.7,2.68296664]
[1759973900617,9.307,4470.4,4470.2,0.26219146]
[1759973900821,8.67696232,4470.3,4470.2,0.26219146]
[1759973901035,8.649,4470.3,4470.2,0.26219146]
[1759973901232,8.649,4470.3,4470.1,2.6219146]
[1759973901233,9.1224,4470.3,4470.1,2.6219146]
[1759973901442,0.2202,4471.3,4470.1,2.6219146]
[1759973901751,0.0279567,4471.2,4470.9,2.23668529]
[1759973901928,2.959,4471.1,4470.8,2.23672714]
[1759973902251,0.66095795,4471.0,4470.8,0.44735963]
[1759973902438,0.66095795,4471.0,4470.8,2.23673611]
[1759973902644,0.66095795,4471.0,4470.4,2.23692343]
[1759973902866,0.66095795,4471.0,4470.8,2.23673555]
[1759973903653,0.66095795,4471.0,4470.7,2.23678239]
[1759973904152,1.0929,4470.9,4470.1,2.6219146]
[1759973904366,4.79063637,4470.2,4470.1,2.6219146]
[1759973904663,13.90093637,4470.2,4470.1,2.6219146]
[1759973906155,12.2686,4470.2,4470.1,2.6219146]
[1759973906340,20.9719,4470.2,4470.1,2.6219146]
[1759973906543,23.20893637,4470.2,4470.1,2.6219146]
[1759973906928,20.9719,4470.2,4470.1,2.6219146]
[1759973907357,23.20893637,4470.2,4470.1,2.6219146]
[1759973907656,20.9719,4470.2,4470.1,2.6219146]
[1759973907865,5.24993637,4470.2,4470.1,2.6219146]
[1759973908058,23.20993637,4470.2,4470.1,2.6219146]
[1759973909047,20.5136,4470.2,4470.1,2.6219146]
[1759973909224,0.6336,4470.2,4470.1,2.6219146]
[1759973909430,18.7048,4470.2,4470.1,2.6219146]
[1759973910332,21.40113637,4470.2,4470.1,2.6219146]
[1759973910638,23.20993637,4470.2,4470.1,2.6219146]
[1759973913162,23.20993637,4470.2,4470.1,2.6229146]
[1759973914467,23.20993637,4470.2,4469.6,0.001]
[1759973914661,5.02388661,4469.7,4469.6,0.001]
[1759973914861,11.34888661,4469.7,4469.6,0.001]
[1759973915050,13.16679685,4469.7,4469.6,0.001]
[1759973915254,21.80757731,4469.7,4469.6,0.001]
[1759973916337,21.36364978,4469.7,4469.6,0.001]
[1759973917666,21.81424316,4469.7,4469.6,0.001]
[1759973918669,42.76424316,4469.7,4469.6,0.001]
[1759973918878,41.11157412,4469.7,4469.6,0.001]
[1759973919187,2.5536,4469.6,4469.1,1e-08]
[1759973919346,14.51113691,4469.2,4469.1,1e-08]
[1759973919539,2.87113691,4469.2,4469.1,1e-08]
[1759973919741,32.55640612,4469.2,4469.1,1e-08]
[1759973919941,32.63891026,4469.2,4469.1,1e-08]
[1759973920169,34.46598568,4469.2,4469.1,1e-08]
[1759973920381,32.13798568,4469.2,4469.1,1e-08]
[1759973920694,32.34132416,4469.2,4469.1,1e-08]
[1759973920842,34.46598568,4469.2,4469.1,1e-08]
[1759973921041,34.66932406,4469.2,4469.1,1e-08]
[1759973921477,1.92,4469.1,4468.1,0.01]
[1759973921681,4.79163768,4468.2,4468.1,0.01]
[1759973921887,11.11863768,4468.2,4468.1,0.01]
[1759973922199,5.25093768,4468.2,4468.1,0.01]
[1759973922395,12.1003,4468.2,4468.1,0.01]
[1759973922549,0.58672567,4468.4,4468.2,2.23799104]
[1759973922750,0.58672567,4468.4,4468.3,0.44861254]
[1759973922982,5.63172567,4468.4,4468.3,0.44861254]
[1759973923284,5.63172567,4468.4,4468.2,2.23803002]
[1759973923483,8.655,4468.3,4468.2,2.23803768]
[1759973923688,0.58672567,4468.4,4468.2,2.23803768]
[1759973923884,0.871,4468.3,4468.2,2.23803768]
[1759973924061,0.58672567,4468.4,4468.2,2.23803768]
[1759973924062,0.58672567,4468.4,4468.3,2.2379876]
[1759973924383,3.80172567,4468.4,4468.3,2.68659013]
[1759973924583,6.91372567,4468.4,4468.3,2.68659013]
[1759973924887,1.02132567,4468.4,4468.1,0.01]
[1759973925182,12.547,4468.3,4468.1,0.01]
[1759973925364,0.02797547,4468.2,4468.1,0.01]
[1759973925561,8.68297547,4468.2,4468.1,0.01]
[1759973925784,8.655,4468.2,4468.1,0.01]
[1759973925984,0.4346,4468.2,4468.1,0.01]
[1759973926181,0.02797484,4468.3,4468.1,0.01]
[1759973926388,7.391,4468.2,4468.1,0.01]
[1759973926789,10.69723768,4468.2,4468.1,0.01]
[1759973926991,12.61723768,4468.2,4468.1,0.01]
[1759973927188,5.22623768,4468.2,4468.1,0.01]
[1759973927487,3.30623768,4468.2,4468.1,0.01]
[1759973927688,21.30221315,4468.2,4468.1,0.01]
[1759973927867,21.27423768,4468.2,4468.1,0.01]
[1759973928070,0.58672567,4468.4,4468.1,0.01]
[1759973928260,0.66157484,4468.3,4468.1,0.01]
[1759973928588,13.065,4468.2,4468.1,0.01]
[1759973928757,1.0682,4468.3,4468.1,0.01]
[1759973928954,1.0682,4468.2,4468.1,0.01]
[1759973929158,3.9792,4468.2,4468.1,0.01]
[1759973929467,0.6336,4468.2,4468.1,0.01]
[1759973929680,14.7406,4468.2,4468.1,0.01]
[1759973930188,0.58672567,4468.4,4468.1,0.01]
[1759973930389,8.655,4468.3,4468.2,2.2379931]
[1759973930956,8.655,4468.3,4468.1,0.23481587]
[1759973931162,0.02797547,4468.2,4468.1,0.01]
[1759973931560,2.89961315,4468.2,4468.1,0.01]
[1759973931775,3.33421315,4468.2,4468.1,0.01]
[1759973931969,3.33421315,4468.2,4468.1,0.011]
[1759973933987,21.30421315,4468.2,4468.1,0.011]
[1759973934292,21.27623768,4468.2,4468.1,0.011]
[1759973934770,23.19623768,4468.2,4468.1,0.011]
[1759973935294,5.22623768,4468.2,4468.1,0.011]
[1759973935458,23.19623768,4468.2,4468.1,0.011]
[1759973936298,5.22623768,4468.2,4468.1,0.011]
[1759973936487,23.39999729,4468.2,4468.1,0.011]
[1759973936689,5.22623768,4468.2,4468.1,0.011]
[1759973937092,30.18423768,4468.2,4468.1,0.011]
[1759973937297,32.51223768,4468.2,4468.1,0.011]
[1759973937673,5.22623768,4468.2,4468.1,0.011]
[1759973937889,33.31732924,4468.2,4468.1,0.011]
[1759973938485,6.03132924,4468.2,4468.1,0.011]
[1759973938780,33.31732924,4468.2,4468.1,0.011]
[1759973939102,6.03132924,4468.2,4468.1,0.011]
[1759973939307,33.31732924,4468.2,4468.1,0.011]
[1759973940170,6.23533173,4468.2,4468.1,0.011]
[1759973940441,24.20633173,4468.2,4468.1,0.011]
[1759973941001,6.23533173,4468.2,4468.1,0.011]
[1759973941202,24.00232924,4468.2,4468.1,0.011]
[1759973943294,33.32032924,4468.2,4468.1,0.011]
[1759973943696,6.03132924,4468.2,4468.1,0.011]
[1759973944021,33.32032924,4468.2,4468.1,0.011]
[1759973944422,33.52454705,4468.2,4468.1,0.011]
[1759973944620,6.23554705,4468.2,4468.1,0.011]
[1759973944828,33.52454705,4468.2,4468.1,0.011]
[1759973945901,31.19554705,4468.2,4468.1,0.011]
[1759973946106,33.52454705,4468.2,4468.1,0.011]
[1759973946325,33.32032924,4468.2,4468.1,0.011]
[1759973948405,6.03132924,4468.2,4468.1,0.011]
[1759973948624,33.32032924,4468.2,4468.1,0.011]
[1759973949637,24.00432924,4468.2,4468.1,0.011]
[1759973949924,8.76879258,4468.2,4468.1,0.011]
[1759973950226,26.74179258,4468.2,4468.1,0.011]
[1759973952420,6.03132924,4468.2,4468.1,0.011]
[1759973952627,8.76879258,4468.2,4468.1,0.011]
[1759973952827,26.74179258,4468.2,4468.1,0.011]
[1759973954035,24.41279258,4468.2,4468.1,0.011]
[1759973954239,26.74179258,4468.2,4468.1,0.011]
[1759973954559,1.0682,4468.2,4468.1,0.011]
[1759973954851,0.1112,4468.2,4468.1,0.011]
[1759973955050,8.7682,4468.2,4468.1,0.011]
[1759973955553,0.1112,4468.2,4468.1,0.011]
[1759973955754,8.4822,4468.2,4468.1,0.011]
[1759973955957,0.1112,4468.2,4468.1,0.011]
[1759973956154,8.7682,4468.2,4468.1,0.011]
[1759973956474,0.1112,4468.2,4468.1,0.011]
[1759973956638,8.7682,4468.2,4468.1,0.011]
[1759973956837,0.1112,4468.2,4468.1,0.011]
[1759973957159,8.657,4468.2,4468.1,0.011]
[1759973957363,0.1112,4468.5,4468.1,0.23592282]
[1759973957528,0.4334,4469.1,4468.1,0.23592282]
[1759973957730,11.76997046,4469.0,4468.6,2.23783693]
[1759973957984,0.4334,4469.0,4468.6,2.23783693]
[1759973958139,0.4334,4469.0,4468.1,0.476]
[1759973958140,2.329,4468.9,4468.1,0.476]
[1759973958463,0.02797171,4468.8,4468.5,2.23788457]
[1759973958663,0.02797171,4468.8,4468.1,0.476]
[1759973958865,2.776,4468.7,4468.3,0.4323]
[1759973959066,6.328,4468.6,4468.1,2.24908732]
[1759973959270,6.328,4468.6,4468.4,0.4323]
[1759973959474,6.328,4468.6,4468.4,2.23791725]
[1759973959676,6.328,4468.6,4468.5,2.23788743]
[1759973961372,6.328,4468.6,4468.1,0.25040873]
[1759973961557,6.328,4468.6,4468.5,2.23788743]
[1759973961869,6.328,4468.6,4468.1,0.011]
[1759973962070,0.46767359,4468.5,4468.1,0.011]
[1759973962237,5.44307127,4468.5,4468.1,0.011]
[1759973962435,3.37106334,4468.2,4468.1,0.011]
[1759973962638,12.79274502,4468.2,4468.1,0.011]
[1759973962850,13.20446955,4468.2,4468.1,0.011]
[1759973963046,15.12446955,4468.2,4468.1,0.011]
[1759973965261,17.86193289,4468.2,4468.1,0.011]
[1759973965661,15.12446955,4468.2,4468.1,0.011]
[1759973965860,15.12446955,4468.2,4467.2,2.6773416]
[1759973965861,2.87208857,4467.3,4467.2,2.6773416]
[1759973966041,21.60099743,4467.3,4467.2,2.6773416]
[1759973966241,3.63099743,4467.3,4467.2,2.6773416]
[1759973966460,9.69876967,4467.3,4467.2,2.6773416]
[1759973966776,21.31378857,4467.3,4467.2,2.6773416]
[1759973969180,3.34378857,4467.3,4467.2,2.6773416]
[1759973969350,21.34476967,4467.3,4467.2,2.6773416]
[1759973969554,21.31678857,4467.3,4467.2,2.6773416]
[1759973969876,3.34378857,4467.3,4467.2,2.6773416]
[1759973970054,21.34476967,4467.3,4467.2,2.6773416]
[1759973970380,21.31678857,4467.3,4467.2,2.6773416]
[1759973970780,3.34378857,4467.3,4467.2,2.6773416]
[1759973970961,16.7772811,4467.3,4467.2,2.6773416]
[1759973971289,21.31678857,4467.3,4467.2,2.6773416]
[1759973973583,7.4333,4467.3,4467.2,2.6773416]
[1759973973768,0.4717,4467.3,4467.2,2.6773416]
[1759973973973,18.0167,4467.3,4467.2,2.6773416]
[1759973974686,20.25518857,4467.3,4467.2,2.6773416]
[1759973975467,32.07368791,4467.3,4467.2,2.6773416]
[1759973976360,32.50268791,4467.3,4467.2,2.6773416]
[1759973976757,4.63018857,4467.3,4467.2,2.6773416]
[1759973976959,23.23778857,4467.3,4467.2,2.6773416]
[1759973977269,32.55478857,4467.3,4467.2,2.6773416]
[1759973977782,33.05478857,4467.3,4467.2,2.6773416]
[1759973978010,3.5253,4467.3,4467.2,2.6773416]
[1759973978167,18.9457,4467.3,4467.2,2.6773416]
[1759973978753,12.6177,4467.3,4467.2,2.6773416]
[1759973978958,12.6177,4467.3,4467.2,2.94617576]
[1759973978959,0.5,4467.3,4467.2,2.94617576]
[1759973979192,3.858,4467.3,4467.2,2.94617576]
[1759973979662,0.5,4467.3,4467.2,2.94617576]
[1759973979954,3.915,4467.3,4467.2,5.18471444]
[1759973980158,9.157,4467.3,4467.2,2.94617576]
[1759973980460,9.157,4467.3,4467.2,2.6773416]
[1759973980854,8.657,4467.3,4467.2,4.91588028]
[1759973981091,6.328,4467.3,4467.2,4.91588028]
[1759973981393,8.236,4467.3,4467.2,2.6773416]
[1759973982375,8.236,4467.3,4467.2,4.91588028]
[1759973982580,0.6835,4468.1,4467.4,2.23843367]
[1759973982779,18.00197672,4468.0,4467.4,2.23843367]
[1759973982994,17.974,4468.0,4467.4,2.23843367]
[1759973983184,0.02797734,4467.9,4467.3,2.23847855]
[1759973983494,0.02797734,4467.9,4467.2,4.91587528]
[1759973983495,6.328,4467.8,4467.2,4.91587528]
[1759973983677,0.0279786,4467.7,4467.2,4.91587528]
[1759973983882,6.328,4467.6,4467.3,2.23848074]
[1759973984392,6.328,4467.6,4467.2,2.6773416]
[1759973984969,6.328,4467.6,4467.3,2.23847659]
[1759973985170,0.6835,4468.1,4467.2,2.6773416]
[1759973985370,14.34897672,4468.0,4467.2,4.91586037]
[1759973985585,0.1112,4467.9,4467.2,2.7885416]
[1759973985780,0.02797797,4467.8,4467.2,2.7885416]
[1759973985983,6.328,4467.7,4467.2,2.7885416]
[1759973986298,0.02797797,4467.8,4467.2,2.7885416]
[1759973986299,6.328,4467.6,4467.3,2.23848857]
[1759973986499,6.328,4467.5,4467.3,2.18848857]
[1759973986699,6.328,4467.5,4467.2,5.53087811]
[1759973987216,0.1112,4467.9,4467.2,3.29235362]
[1759973987509,8.657,4467.8,4467.3,2.23848857]
[1759973987675,6.328,4467.7,4467.3,2.23848857]
[1759973988009,0.1112,4467.9,4467.3,2.23848857]
[1759973988010,6.328,4467.6,4467.3,2.23848857]
[1759973988208,0.1112,4467.9,4467.3,2.23848857]
[1759973988508,8.657,4467.8,4467.3,2.23848857]
[1759973989184,8.657,4467.8,4467.3,2.16408857]
[1759973990104,8.657,4467.8,4467.2,2.7885416]
[1759973990105,0.1112,4467.4,4467.2,2.6773416]
[1759973990426,6.8108811,4467.3,4467.2,2.6773416]
[1759973990605,9.5197241,4467.3,4467.2,2.6773416]
[1759973992016,9.02138857,4467.3,4467.2,2.6773416]
[1759973992214,8.32975886,4467.3,4467.2,2.6773416]
[1759973992416,10.56824743,4467.3,4467.2,2.6773416]
[1759973993631,0.4549,4467.3,4467.2,2.6773416]
[1759973993798,13.942,4467.3,4467.2,2.6773416]
[1759973995637,17.974,4467.3,4467.2,2.6773416]
[1759973995802,0.1112,4467.4,4467.3,2.23848857]
[1759973996003,3.031,4467.4,4467.3,2.23848857]
[1759973996197,3.031,4467.4,4467.2,4.91586873]
[1759973996396,3.031,4467.4,4467.2,2.6773416]
[1759973996829,0.002,4468.1,4467.3,2.23848857]
[1759973997034,3.017,4468.0,4467.4,2.23843846]
[1759973997336,0.5,4467.7,4467.2,3.39549576]
[1759973997630,0.002,4468.1,4467.6,2.34953825]
[1759973997833,3.285,4468.0,4467.6,0.1112]
[1759973998035,0.45927734,4467.9,4467.2,2.6773416]
[1759973998400,0.45927734,4467.9,4467.3,2.23848408]
[1759973998606,0.45927734,4467.9,4467.2,2.6773416]
[1759973998832,2.839,4467.8,4467.2,2.94617576]
[1759973999005,2.839,4467.8,4467.2,5.18470996]
[1759973999203,0.002,4468.1,4467.4,2.23840393]
[1759973999434,5.307,4468.0,4467.4,2.23840393]
[1759973999938,0.02797734,4467.9,4467.4,2.23840393]
[1759974000343,0.02797734,4467.9,4467.2,2.94617576]
[1759974000344,0.02797734,4467.9,4467.3,2.23848857]
[1759974000842,0.002,4468.1,4467.4,0.4382]
[1759974001003,0.002,4468.1,4467.8,2.23823053]
[1759974001208,2.769,4468.0,4467.9,2.23818796]
[1759974001402,0.002,4468.1,4467.9,2.23818796]
[1759974001628,8.656,4468.0,4467.9,2.23818796]
[1759974001839,8.656,4468.0,4467.8,2.23823268]
[1759974002045,8.656,4467.9,4467.4,0.4382]
[1759974002222,8.656,4467.9,4467.7,2.23828452]
[1759974002416,0.002,4468.1,4467.8,2.23822382]
[1759974002617,8.656,4468.0,4467.9,2.23818796]
[1759974003346,0.002,4468.1,4468.0,2.23813786]
[1759974003534,0.002,4468.1,4468.0,2.67633786]
[1759974003535,0.063,4468.1,4468.0,2.67633786]
[1759974003752,0.002,4468.1,4468.0,2.67633786]
[1759974004831,0.002,4468.1,4468.0,4.59633786]
[1759974007047,0.002,4468.1,4468.0,2.67633786]
[1759974007247,0.002,4468.1,4468.0,3.21256044]
[1759974008052,0.002,4468.1,4468.0,3.32376044]
[1759974013942,0.002,4468.1,4468.0,3.21256044]
[1759974016483,0.002,4468.1,4468.0,2.77436044]
[1759974016786,0.002,4468.1,4468.0,2.23813786]
[1759974018776,0.002,4468.1,4468.0,2.67633786]
[1759974020559,0.002,4468.1,4467.5,2.23834917]
[1759974020560,0.002,4468.1,4467.3,0.001]
[1759974020780,0.002,4468.1,4468.0,2.23813786]
[1759974021085,0.002,4468.1,4468.0,2.67633786]
[1759974022287,0.002,4468.1,4468.0,2.23813786]
[1759974024384,0.002,4468.1,4467.3,0.001]
[1759974024689,0.002,4468.1,4467.7,2.23825279]
[1759974025350,0.4693,4468.1,4467.7,2.23825279]
[1759974025587,0.4693,4468.1,4467.3,2.23947096]
[1759974025791,0.4693,4468.1,4467.4,2.23843846]
[1759974025996,0.02797672,4468.0,4467.3,0.001]
[1759974026169,0.49527672,4468.0,4467.3,0.001]
[1759974026654,0.27353149,4467.9,4467.3,0.001]
[1759974026878,0.02797797,4467.8,4467.3,0.001]
[1759974027074,0.49527797,4467.8,4467.3,2.23948738]
[1759974027280,0.4673,4467.7,4467.4,2.23843846]
[1759974027478,4.10597922,4467.6,4467.3,0.001]
[1759974027678,0.4673,4467.5,4467.3,0.001]
[1759974027911,0.02798048,4467.4,4467.3,0.001]
[1759974028412,0.49528048,4467.4,4467.3,0.001]
[1759974030913,0.49528048,4467.4,4466.7,2.23878735]
[1759974030914,0.49528048,4467.4,4462.7,6.57212485]
[1759974031212,0.49528048,4467.4,4466.7,2.23876177]
[1759974031514,1.24788891,4467.3,4466.5,2.23888951]
[1759974031714,0.02798173,4467.2,4466.8,2.23873046]
[1759974032009,0.02798173,4467.2,4466.9,2.23868701]
[1759974033410,0.02798173,4467.2,4464.6,0.23424699]
[1759974033611,0.02798173,4467.2,4466.9,2.23868317]
[1759974033812,1.24788891,4467.3,4464.6,0.23424699]
[1759974033813,1.24788891,4467.3,4467.2,2.23853868]
[1759974034113,3.375,4467.3,4467.1,2.23858789]
[1759974035417,0.1112,4467.4,4467.1,2.23858789]
[1759974035583,6.326,4467.2,4467.1,2.23858789]
[1759974036206,3.41092729,4468.2,4466.1,0.182]
[1759974036207,0.6336,4468.3,4467.2,2.23853868]
[1759974036413,8.7652,4467.7,4467.1,2.2385491]
[1759974036715,0.4673,4467.6,4467.0,0.1112]
[1759974036884,0.4673,4467.6,4467.4,2.23839965]
[1759974037079,0.1112,4467.7,4467.5,2.23838222]
[1759974037290,8.654,4467.6,4467.0,0.1112]
[1759974037514,8.654,4467.6,4467.0,0.5489]
[1759974037919,8.654,4467.6,4467.5,2.23834039]
[1759974038297,0.002,4468.1,4467.3,2.23846734]
[1759974038298,0.002,4468.1,4467.8,2.23818935]
[1759974038500,0.002,4468.1,4467.8,2.23819039]
[1759974038708,8.654,4468.0,4467.8,2.23819039]
[1759974038893,8.654,4468.0,4467.9,2.23818796]
[1759974039217,0.002,4468.1,4468.0,2.23813786]
[1759974039394,8.656,4468.1,4468.0,2.23813786]
[1759974039920,0.002,4468.1,4468.0,2.23813786]
[1759974040215,0.459,4468.1,4468.0,2.23813786]
[1759974041395,0.002,4468.1,4468.0,2.23813786]
[1759974041597,6.328,4468.1,4468.0,2.23813786]
[1759974041820,0.002,4468.1,4468.0,2.23813786]
[1759974042125,0.002,4468.1,4468.0,3.12347409]
[1759974045801,0.002,4468.1,4468.0,5.04347409]
[1759974046202,0.002,4468.1,4468.0,5.84347409]
[1759974048408,0.002,4468.1,4468.0,5.95467409]
[1759974052216,0.002,4468.1,4468.0,2.78503786]
[1759974053703,0.002,4468.1,4468.0,3.58503786]
[1759974053907,0.002,4468.1,4468.0,2.78503786]
[1759974055227,0.002,4468.1,4468.0,2.80913786]
[1759974058630,0.002,4468.1,4468.0,4.72913786]
[1759974059226,0.002,4468.1,4468.0,6.13827409]
[1759974061405,0.002,4468.1,4468.0,6.93827409]
[1759974061806,0.002,4468.1,4468.0,5.52913786]
[1759974062626,0.002,4469.0,4468.9,2.23768712]
[1759974062627,1e-08,4469.0,4468.9,2.23768712]
[1759974062826,1e-08,4469.0,4468.9,4.94021026]
[1759974063151,1e-08,4469.0,4468.9,5.40001026]
[1759974064432,1e-08,4469.0,4468.9,6.65359274]
[1759974064743,1e-08,4469.0,4468.9,6.54239274]
[1759974065806,1e-08,4469.0,4468.9,5.28881026]
[1759974066030,1e-08,4469.0,4468.9,4.61748712]
[1759974068416,1e-08,4469.5,4469.4,2.23743679]
[1759974068616,1e-08,4469.5,4469.4,4.15743679]
[1759974068839,1e-08,4469.5,4469.4,4.61723679]
[1759974069047,1e-08,4469.5,4469.4,5.93501127]
[1759974070805,2.381,4470.8,4470.0,2.23713646]
[1759974071343,2.381,4470.8,4470.0,4.61693646]
[1759974072466,0.002,4471.1,4470.0,4.61693646]
[1759974072669,4.372,4471.0,4470.0,4.61693646]
[1759974074164,0.002,4471.1,4470.0,4.61693646]
[1759974074750,0.002,4471.1,4470.0,4.72813646]
[1759974076070,0.02795857,4470.9,4468.5,2.23786109]
[1759974076268,0.4554,4470.8,4470.4,2.23692477]
[1759974076457,0.02795795,4471.0,4469.6,0.4598]
[1759974076665,0.4554,4470.9,4470.1,2.23708115]
[1759974076861,0.0279592,4470.8,4470.1,2.23708115]
[1759974077167,0.0279592,4470.8,4470.3,2.23697713]
[1759974077353,0.0279592,4470.8,4470.2,2.23702835]
[1759974077556,0.1833592,4470.9,4469.9,2.23716836]
[1759974077749,0.29324746,4470.8,4470.2,2.23699514]
[1759974077949,0.29324746,4470.8,4470.3,2.23696496]
[1759974078566,2.23684081,4470.6,4469.2,0.4598]
[1759974078766,6.04762317,4470.5,4469.2,0.4598]
[1759974078935,2.327,4470.4,4469.7,2.23723837]
[1759974079139,1.0611464,4470.3,4469.5,2.23737839]
[1759974079341,1.0611464,4470.3,4469.6,2.23732731]
[1759974079740,1.0611464,4470.3,4469.8,2.23718668]
[1759974080140,1.0611464,4470.3,4469.9,2.23718121]
[1759974080570,1.0611464,4470.3,4470.0,2.23710827]
[1759974080775,2.327,4470.4,4470.0,2.23710827]
[1759974081074,2.327,4470.4,4469.9,2.23717303]
[1759974081370,8.648,4470.3,4470.0,0.02237136]
[1759974081576,8.648,4470.3,4469.8,0.02237236]
[1759974081784,1.92,4471.4,4469.6,0.4598]
[1759974081785,9.31,4470.9,4470.4,2.23693597]
[1759974081989,6.321,4470.8,4470.4,2.23693597]
[1759974082142,8.648,4470.8,4470.4,2.23693597]
[1759974082348,8.648,4470.8,4470.5,2.23688298]
[1759974082674,2.83290431,4471.5,4469.3,3.03744042]
[1759974082675,0.5965109,4471.5,4470.1,0.4598]
[1759974082857,0.6336,4471.4,4470.8,2.23672799]
[1759974083039,11.637,4471.3,4470.8,2.23672799]
[1759974083247,0.6336,4471.4,4470.8,2.23672799]
[1759974083461,0.53884626,4471.3,4470.1,0.6927]
[1759974083661,11.637,4471.2,4470.1,2.92977849]
[1759974083874,11.637,4471.2,4470.2,2.23701223]
[1759974084171,11.637,4471.2,4470.1,0.6927]
[1759974084363,11.637,4471.2,4470.4,2.23693629]
[1759974084566,11.637,4471.2,4470.5,2.25922761]
[1759974084764,8.648,4471.1,4470.8,2.2367259]
[1759974085167,8.648,4471.1,4470.7,2.23677797]
[1759974085548,8.648,4471.1,4470.3,2.70214765]
[1759974085742,8.648,4471.1,4470.8,2.2367274]
[1759974085943,8.648,4471.1,4470.6,2.2368238]
[1759974086147,8.648,4471.1,4470.5,0.1112]
[1759974086573,8.648,4471.1,4470.5,2.34807557]
[1759974086751,8.648,4471.1,4470.6,2.23682089]
[1759974087365,8.648,4471.1,4470.5,0.1112]
[1759974087664,8.648,4471.1,4470.5,2.34808413]
[1759974087859,8.648,4471.1,4470.5,0.1112]
[1759974088178,0.1112,4470.6,4469.7,2.23726849]
[1759974088385,0.1112,4470.3,4469.7,2.23726849]
[1759974088699,8.55789778,4470.5,4469.6,0.001]
[1759974088700,2.23712416,4470.1,4469.6,0.001]
[1759974088997,0.1112,4470.1,4469.6,0.001]
[1759974089385,0.1112,4470.1,4469.7,2.23728444]
[1759974089555,0.1112,4470.1,4469.6,0.001]
[1759974089556,6.321,4470.0,4469.6,2.23833443]
[1759974089764,2.327,4469.9,4469.7,0.02237286]
[1759974089964,0.85578978,4470.4,4469.7,0.02237286]
[1759974089965,9.309,4470.5,4469.7,0.48757286]
[1759974090164,6.321,4470.4,4470.0,2.23709126]
[1759974090365,0.1112,4470.6,4470.0,2.70229126]
[1759974090604,8.648,4470.5,4470.0,2.23709126]
[1759974091075,8.648,4470.5,4469.8,0.1112]
[1759974091488,8.648,4470.5,4469.9,2.23714738]
[1759974092010,2.73432794,4470.2,4469.6,0.1122]
[1759974092313,2.73432794,4469.9,4469.6,0.001]
[1759974092460,6.321,4469.8,4469.6,0.001]
[1759974092864,0.1928,4469.7,4469.6,0.001]
[1759974093764,6.321,4469.8,4469.6,0.001]
[1759974094910,6.321,4469.8,4469.6,2.23833619]
[1759974095791,6.321,4469.8,4469.6,0.001]
[1759974099097,6.321,4469.8,4469.6,2.23830078]
[1759974099397,6.321,4469.8,4469.7,2.23728661]
[1759974100320,0.1928,4471.0,4469.7,0.91276717]
[1759974100466,0.1928,4471.0,4469.6,0.02337336]
[1759974100467,2.327,4470.9,4470.7,2.23676777]
[1759974100666,1.035,4470.8,4470.7,2.23676777]
[1759974101066,0.1112,4471.1,4470.6,2.25919987]
[1759974101273,0.1112,4471.1,4470.6,2.72439987]
[1759974101490,4.99,4471.0,4470.8,2.2366921]
[1759974101668,6.54,4470.9,4470.8,2.2366921]
[1759974102096,0.002,4471.4,4471.0,2.23660439]
[1759974102290,8.649,4471.3,4471.0,2.23663609]
[1759974102936,0.1132,4471.4,4471.0,0.4626]
[1759974102937,0.002,4471.4,4471.0,0.4626]
[1759974103231,0.002,4471.4,4470.2,0.2184]
[1759974103232,0.002,4471.4,4471.1,2.23657927]
[1759974103435,2.329,4471.4,4471.3,2.23648603]
[1759974103631,3.25,4471.4,4471.3,2.23648603]
[1759974104230,0.002,4471.4,4471.3,2.23648603]
[1759974104430,6.323,4471.4,4471.3,2.23648603]
[1759974104735,0.002,4471.4,4471.3,2.69908603]
[1759974104939,0.73,4471.4,4471.3,3.22613742]
[1759974105231,0.002,4471.4,4471.3,3.22613742]
[1759974106106,0.002,4471.4,4471.3,3.31497256]
[1759974106311,0.002,4471.4,4471.3,3.33733742]